bitfinex-derivatives/quotes_BTCF0:USTF0_20241116
["timestamp","ask_amount","ask_price","bid_price","bid_amount"]
[1731774734995,0.05506,90769.0,90768.0,0.12049882]
[1731774735177,0.05506,90769.0,90768.0,0.01032845]
[1731774735378,0.05506,90769.0,90752.0,0.05507]
[1731774735379,0.05506,90769.0,90750.0,9.942e-05]
[1731774735588,0.055071,90751.0,90750.0,9.942e-05]
[1731774736084,0.055071,90751.0,90750.0,0.11026979]
[1731774736284,0.055071,90751.0,90750.0,0.16534079]
[1731774738592,0.055071,90751.0,90750.0,0.17567095]
[1731774740685,0.055071,90751.0,90750.0,0.16534079]
[1731774742890,0.055071,90751.0,90750.0,0.17567081]
[1731774744298,0.055071,90751.0,90750.0,0.12059981]
[1731774744803,0.055071,90751.0,90750.0,0.12060002]
[1731774744999,0.055071,90751.0,90750.0,0.11026979]
[1731774745200,0.055071,90751.0,90750.0,0.12060031]
[1731774745499,0.055071,90751.0,90750.0,0.11026979]
[1731774745700,0.055071,90751.0,90750.0,0.12060057]
[1731774749105,0.055071,90751.0,90750.0,0.16534079]
[1731774751402,0.055071,90751.0,90750.0,0.1687843]
[1731774751602,0.055071,90751.0,90750.0,0.1137133]
[1731774751796,0.055071,90751.0,90750.0,0.37477538]
[1731774752002,0.055071,90751.0,90750.0,0.1137133]
[1731774752201,0.055071,90751.0,90750.0,0.1240441]
[1731774752399,0.055071,90751.0,90750.0,0.1137133]
[1731774754304,0.055071,90751.0,90750.0,0.11371332]
[1731774754800,0.055071,90751.0,90750.0,0.12404401]
[1731774755703,0.055071,90751.0,90750.0,0.11371332]
[1731774756407,0.055071,90751.0,90750.0,0.3746938]
[1731774756604,0.055071,90751.0,90750.0,0.11371332]
[1731774756906,0.055071,90751.0,90750.0,0.16878432]
[1731774757108,0.3608,90762.0,90756.0,0.055067]
[1731774757109,0.055067,90757.0,90756.0,0.055067]
[1731774757303,0.055067,90757.0,90756.0,0.06884106]
[1731774757505,0.055067,90757.0,90756.0,0.06884071]
[1731774757696,0.055067,90757.0,90756.0,0.17902565]
[1731774757893,0.055067,90757.0,90756.0,0.17902532]
[1731774759111,0.055067,90757.0,90756.0,0.0034432]
[1731774760200,0.055067,90757.0,90756.0,0.11362814]
[1731774760398,0.055067,90757.0,90756.0,0.16869514]
[1731774761106,0.055067,90757.0,90756.0,0.12395798]
[1731774761309,0.385627,90757.0,90756.0,0.01377304]
[1731774761498,0.385627,90757.0,90756.0,0.01032984]
[1731774761698,0.055067,90757.0,90756.0,0.01032984]
[1731774762208,0.055067,90757.0,90756.0,0.11018494]
[1731774762402,0.3608,90759.0,90756.0,0.11018494]
[1731774762603,0.3608,90761.0,90760.0,0.055065]
[1731774762798,0.3608,90761.0,90760.0,0.06883993]
[1731774763001,0.13201391,90773.0,90764.0,0.055062]
[1731774763318,0.13201391,90778.0,90768.0,0.26095259]
[1731774763611,0.415854,90779.0,90778.0,0.055054]
[1731774764719,0.415854,90779.0,90778.0,0.16521891]
[1731774765702,0.415854,90779.0,90778.0,0.1755469]
[1731774765899,0.05505,90785.0,90778.0,0.11016491]
[1731774766117,0.00010521,90787.0,90786.0,0.055049]
[1731774766304,0.00010521,90787.0,90786.0,0.06537558]
[1731774766505,0.00010521,90787.0,90786.0,0.16520724]
[1731774766718,0.00010521,90787.0,90786.0,0.175534]
[1731774768438,0.07719492,90787.0,90786.0,0.175534]
[1731774768915,0.76843492,90787.0,90771.0,0.26074477]
[1731774769220,0.055058,90772.0,90771.0,0.31580277]
[1731774769411,0.055058,90772.0,90771.0,0.055058]
[1731774770013,0.055058,90772.0,90771.0,0.16522473]
[1731774770817,0.055058,90772.0,90771.0,0.11016673]
[1731774771114,0.10512868,90777.0,90766.0,0.41479975]
[1731774771115,0.055061,90767.0,90766.0,0.41479975]
[1731774771310,0.055061,90767.0,90766.0,0.3608]
[1731774771903,0.055061,90767.0,90766.0,0.4709728]
[1731774772306,0.055061,90767.0,90766.0,0.1101728]
[1731774772720,0.52141618,90777.0,90766.0,0.01032908]
[1731774772908,0.52141618,90777.0,90759.0,0.00165266]
[1731774772909,0.055065,90760.0,90759.0,0.00165266]
[1731774773103,0.055065,90760.0,90759.0,0.05671866]
[1731774773305,0.055061,90767.0,90760.0,0.1101728]
[1731774773506,0.52141618,90777.0,90759.0,0.00165266]
[1731774773507,0.4162875,90777.0,90759.0,0.00165266]
[1731774773706,0.4162875,90777.0,90766.0,0.055061]
[1731774774020,0.05506,90769.0,90768.0,0.05506]
[1731774774414,0.05506,90769.0,90768.0,0.11017644]
[1731774774917,0.055061,90768.0,90766.0,0.055061]
[1731774775125,0.46592868,90776.0,90760.0,0.055065]
[1731774775418,0.05506,90768.0,90767.0,0.11017037]
[1731774775618,0.055064,90763.0,90760.0,0.055065]
[1731774775931,0.055064,90763.0,90761.0,0.11017159]
[1731774778010,0.055064,90761.0,90759.0,0.00165266]
[1731774779122,0.055064,90761.0,90760.0,0.01032962]
[1731774779826,0.05593664,90763.0,90760.0,0.01032962]
[1731774780123,0.3608,90767.0,90766.0,0.055061]
[1731774780425,0.055037,90806.0,90773.0,0.055057]
[1731774780426,0.11307262,90775.0,90773.0,0.055057]
[1731774780819,0.02203262,90775.0,90773.0,0.055057]
[1731774781010,0.02203262,90775.0,90763.0,0.3608]
[1731774781011,0.506891,90784.0,90772.0,0.3608]
[1731774781211,0.56317976,90784.0,90778.0,0.055054]
[1731774781420,0.56317976,90784.0,90780.0,0.055053]
[1731774781421,0.11073975,90784.0,90780.0,0.055053]
[1731774781721,0.055051,90783.0,90780.0,0.055053]
[1731774781925,0.055051,90783.0,90781.0,0.11015399]
[1731774782313,0.09104,90786.0,90773.0,0.3608]
[1731774782623,0.055054,90779.0,90776.0,0.055055]
[1731774783527,0.05569977,90786.0,90777.0,0.11015702]
[1731774783733,0.3608,90794.0,90785.0,0.05505]
[1731774784319,0.3608,90794.0,90786.0,0.11015945]
[1731774784529,0.3608,90794.0,90786.0,0.12048599]
[1731774784530,0.00010521,90787.0,90786.0,0.12048599]
[1731774785622,0.00010521,90787.0,90786.0,0.11015945]
[1731774786014,0.00010521,90787.0,90786.0,0.12048526]
[1731774786918,0.1,90800.0,90786.0,0.12058468]
[1731774787122,0.1,90800.0,90798.0,0.055042]
[1731774787321,0.1,90800.0,90799.0,0.01032581]
[1731774787727,0.1,90800.0,90799.0,0.12047434]
[1731774788432,0.1,90800.0,90799.0,0.12047385]
[1731774789218,0.1,90800.0,90799.0,0.11014853]
[1731774791028,0.1,90800.0,90799.0,0.01032507]
[1731774791223,0.1,90800.0,90794.0,0.055044]
[1731774791529,0.055043,90796.0,90794.0,0.11013276]
[1731774791731,0.055044,90795.0,90792.0,0.055045]
[1731774791937,0.055044,90795.0,90792.0,0.16518079]
[1731774792141,0.055045,90794.0,90792.0,0.16518079]
[1731774792434,0.055045,90794.0,90792.0,0.11013579]
[1731774792619,0.10512868,90793.0,90792.0,0.11013579]
[1731774792822,0.055049,90787.0,90786.0,0.05514842]
[1731774793129,0.055049,90787.0,90786.0,9.942e-05]
[1731774793628,0.055049,90787.0,90786.0,0.11024006]
[1731774793836,0.055049,90787.0,90786.0,9.942e-05]
[1731774795225,0.055058,90772.0,90771.0,0.3608]
[1731774795728,0.055059,90770.0,90768.0,0.05506]
[1731774796135,0.055059,90770.0,90769.0,0.11027194]
[1731774797132,0.055059,90770.0,90769.0,0.00010521]
[1731774797525,0.11057911,90770.0,90769.0,0.00010521]
[1731774803541,0.09092,90786.0,90769.0,0.00010521]
[1731774803542,0.10512868,90786.0,90769.0,0.12060262]
[1731774803839,0.055053,90780.0,90770.0,0.0103281]
[1731774804044,0.055053,90780.0,90771.0,0.0103281]
[1731774804232,0.055053,90780.0,90772.0,0.0103281]
[1731774804437,0.05505,90785.0,90776.0,0.3608]
[1731774804738,0.055047,90790.0,90788.0,0.055048]
[1731774804938,0.02203362,90789.0,90788.0,0.055048]
[1731774806338,0.15924875,90794.0,90788.0,0.1101461]
[1731774806538,0.1,90800.0,90792.0,0.055045]
[1731774806744,0.055045,90793.0,90792.0,0.055045]
[1731774806947,0.055045,90793.0,90792.0,0.06537096]
[1731774807237,0.055045,90793.0,90792.0,0.52598201]
[1731774807535,0.15559633,90800.0,90795.0,0.055044]
[1731774807536,0.055043,90797.0,90795.0,0.055044]
[1731774807940,0.15559633,90800.0,90798.0,0.055042]
[1731774808144,0.15559633,90800.0,90799.0,0.01032535]
[1731774808330,0.1,90800.0,90799.0,0.01032535]
[1731774808734,0.1,90800.0,90799.0,0.12046236]
[1731774813846,0.1,90800.0,90799.0,0.11013701]
[1731774816858,0.1,90800.0,90796.0,0.3608]
[1731774817142,0.1,90800.0,90798.0,0.055042]
[1731774817645,0.1,90800.0,90799.0,0.01032378]
[1731774817853,0.1,90800.0,90799.0,0.11013276]
[1731774819345,0.1,90800.0,90799.0,0.16517376]
[1731774820437,0.0051,90816.0,90815.0,0.055032]
[1731774820647,0.05503,90818.0,90817.0,0.05503]
[1731774820835,0.07705561,90818.0,90817.0,0.05503]
[1731774826340,0.02202561,90818.0,90817.0,0.05503]
[1731774828155,0.05424889,90819.0,90817.0,0.16514093]
[1731774830053,0.05424889,90819.0,90818.0,0.05503]
[1731774830745,0.05424889,90819.0,90818.0,0.16514033]
[1731774831945,0.10927789,90819.0,90818.0,0.16514033]
[1731774832352,0.05424889,90819.0,90818.0,0.16514033]
[1731774834662,0.05424889,90819.0,90813.0,0.3608]
[1731774834857,0.055032,90815.0,90813.0,0.3608]
[1731774835052,0.055032,90815.0,90814.0,0.11010972]
[1731774835457,0.055032,90815.0,90814.0,0.17546462]
[1731774838261,0.055032,90815.0,90814.0,0.17890561]
[1731774838465,0.05424889,90819.0,90817.0,0.05503]
[1731774838656,0.10927789,90819.0,90818.0,0.01376389]
[1731774839161,0.10927789,90819.0,90818.0,0.01928735]
[1731774840569,0.10927789,90819.0,90818.0,0.01941493]
[1731774841154,0.10927789,90819.0,90818.0,0.01938477]
[1731774841362,0.0473416,90819.0,90818.0,0.01938477]
[1731774841560,0.0473416,90819.0,90818.0,0.06409187]
[1731774842076,0.06940092,90832.0,90831.0,0.055022]
[1731774842256,0.055013,90847.0,90838.0,0.055017]
[1731774842456,0.02202543,90852.0,90842.0,0.3608]
[1731774842676,0.02202543,90852.0,90846.0,0.055013]
[1731774842976,0.02202543,90852.0,90842.0,0.62031808]
[1731774843270,0.41563232,90862.0,90847.0,0.11007518]
[1731774843506,0.02202543,90858.0,90848.0,0.055012]
[1731774843658,0.055009,90853.0,90842.0,0.3608]
[1731774843861,0.3608,90853.0,90849.0,0.00906051]
[1731774844061,0.05501,90851.0,90849.0,0.00557636]
[1731774844357,0.46592868,90853.0,90843.0,0.00557636]
[1731774844358,0.055014,90844.0,90843.0,0.00557636]
[1731774844672,0.055019,90836.0,90832.0,9.956e-05]
[1731774844858,0.3608,90843.0,90833.0,0.01376076]
[1731774845062,0.3608,90843.0,90834.0,0.00344029]
[1731774845256,0.16465055,90844.0,90835.0,0.05845929]
[1731774845257,0.055016,90841.0,90835.0,0.05845929]
[1731774845563,0.05417706,90843.0,90840.0,0.10512868]
[1731774845756,0.055011,90850.0,90844.0,0.055014]
[1731774845964,0.055011,90849.0,90845.0,0.00344029]
[1731774846159,0.16465055,90852.0,90850.0,0.05501]
[1731774846359,0.41624352,90853.0,90852.0,0.055009]
[1731774846570,0.05604353,90853.0,90852.0,0.3608]
[1731774846762,0.05604353,90853.0,90852.0,0.415809]
[1731774846957,0.05544352,90853.0,90852.0,0.415809]
[1731774847170,0.02202543,90858.0,90847.0,0.10512868]
[1731774847365,0.02202543,90858.0,90855.0,0.055007]
[1731774847969,0.18667598,90867.0,90855.0,0.10512868]
[1731774848269,0.02202543,90867.0,90863.0,0.055003]
[1731774848476,0.02202543,90867.0,90865.0,0.055001]
[1731774848978,0.055004,90861.0,90856.0,0.3608]
[1731774849269,0.055008,90855.0,90848.0,0.055012]
[1731774849475,0.055008,90854.0,90849.0,0.055011]
[1731774849668,0.16465055,90864.0,90848.0,0.11005216]
[1731774849864,0.09076,90866.0,90853.0,0.055008]
[1731774849865,0.055005,90860.0,90853.0,0.055008]
[1731774850171,0.055005,90860.0,90848.0,0.11006427]
[1731774850363,0.055005,90860.0,90858.0,0.055005]
[1731774850558,0.09076,90866.0,90864.0,0.055002]
[1731774850762,0.055003,90864.0,90859.0,0.11006427]
[1731774850963,0.055003,90864.0,90854.0,0.10512868]
[1731774851163,0.05486765,90871.0,90867.0,0.055]
[1731774851367,0.05486765,90871.0,90861.0,0.055003]
[1731774851368,0.055002,90865.0,90861.0,0.055003]
[1731774851572,0.055002,90865.0,90863.0,0.055003]
[1731774851775,0.05486765,90871.0,90870.0,0.054998]
[1731774852360,0.05486765,90871.0,90870.0,0.16505258]
[1731774852773,0.05486765,90871.0,90870.0,0.11005458]
[1731774852973,0.05486765,90871.0,90863.0,0.3608]
[1731774853178,0.05486765,90871.0,90852.0,0.41767191]
[1731774853179,0.055001,90865.0,90852.0,0.41711191]
[1731774853362,0.05486765,90871.0,90864.0,0.11004671]
[1731774853563,0.054999,90869.0,90864.0,0.055002]
[1731774853765,0.054999,90869.0,90860.0,0.3608]
[1731774854068,0.054999,90869.0,90865.0,0.11004671]
[1731774854265,0.05486765,90871.0,90860.0,0.3608]
[1731774854468,0.05486765,90871.0,90869.0,0.054999]
[1731774854770,9.672e-05,90871.0,90869.0,0.054999]
[1731774854968,9.672e-05,90871.0,90870.0,0.11005155]
[1731774858578,9.672e-05,90871.0,90870.0,0.11349045]
[1731774859872,9.672e-05,90871.0,90870.0,0.11899286]
[1731774860787,9.672e-05,90871.0,90870.0,0.12930966]
[1731774861370,9.672e-05,90871.0,90870.0,0.11901689]
[1731774861576,9.672e-05,90871.0,90870.0,0.1238159]
[1731774861879,9.672e-05,90871.0,90870.0,0.11901664]
[1731774863184,9.672e-05,90871.0,90870.0,0.00896509]
[1731774863185,0.36089672,90871.0,90870.0,0.00896509]
[1731774863573,9.672e-05,90871.0,90870.0,0.00896509]
[1731774864079,0.055001,90867.0,90859.0,0.055004]
[1731774864273,0.055002,90865.0,90860.0,0.06394611]
[1731774864469,0.055003,90863.0,90861.0,0.00894211]
[1731774864674,0.055003,90863.0,90862.0,0.00894211]
[1731774865779,0.055003,90863.0,90862.0,0.00343927]
[1731774866280,0.00060001,90864.0,90863.0,0.055003]
[1731774866485,0.415802,90864.0,90863.0,0.00894369]
[1731774866876,0.415802,90864.0,90863.0,0.00343991]
[1731774866877,0.055002,90864.0,90863.0,0.00343991]
[1731774867182,0.05574843,90864.0,90862.0,0.05492279]
[1731774867387,0.19736868,90869.0,90856.0,0.3608]
[1731774867585,0.10512868,90862.0,90852.0,0.11005519]
[1731774867888,0.055007,90856.0,90851.0,0.0016507]
[1731774868184,0.055007,90856.0,90853.0,0.055008]
[1731774868484,0.10512868,90862.0,90851.0,0.0016507]
[1731774868875,0.055008,90854.0,90851.0,0.0566607]
[1731774869184,0.055008,90854.0,90852.0,0.055009]
[1731774869685,0.055009,90852.0,90851.0,0.0016507]
[1731774870682,0.10512868,90862.0,90851.0,0.0016507]
[1731774870683,0.09224,90862.0,90851.0,0.0016507]
[1731774870888,0.147243,90862.0,90851.0,0.11172042]
[1731774871085,0.09224,90862.0,90860.0,0.055004]
[1731774871287,0.055,90868.0,90866.0,0.055]
[1731774871489,0.09224,90867.0,90866.0,0.055]
[1731774872989,0.09224,90867.0,90851.0,0.0016507]
[1731774873194,0.055003,90863.0,90861.0,0.055004]
[1731774873509,0.055003,90863.0,90861.0,0.055003]
[1731774874785,0.055003,90863.0,90862.0,0.01031786]
[1731774875182,0.055009,90853.0,90851.0,0.0566607]
[1731774875394,0.09224,90852.0,90851.0,0.0016507]
[1731774875597,0.09624,90852.0,90851.0,0.0016507]
[1731774876687,0.09624,90852.0,90837.0,0.25946489]
[1731774876996,0.09624,90852.0,90832.0,9.956e-05]
[1731774876997,0.10512868,90838.0,90832.0,9.956e-05]
[1731774877199,0.055018,90839.0,90836.0,0.055019]
[1731774877396,0.10512868,90845.0,90837.0,0.01032034]
[1731774877700,0.16014268,90845.0,90839.0,0.055017]
[1731774877884,0.16014268,90845.0,90838.0,0.01032034]
[1731774877885,0.16014268,90845.0,90841.0,0.055016]
[1731774878088,0.055014,90844.0,90842.0,0.01032034]
[1731774878290,0.055014,90844.0,90843.0,0.01032034]
[1731774879299,0.055014,90844.0,90843.0,0.00344022]
[1731774881400,0.385254,90844.0,90832.0,9.956e-05]
[1731774881603,0.16014968,90833.0,90832.0,9.956e-05]
[1731774881798,0.25078968,90833.0,90832.0,9.956e-05]
[1731774885702,0.62465979,90833.0,90832.0,9.956e-05]
[1731774885908,0.16015868,90817.0,90816.0,0.3608]
[1731774886595,0.055027,90824.0,90822.0,0.055027]
[1731774886803,0.09068,90823.0,90822.0,0.055027]
[1731774887003,0.09068,90823.0,90822.0,0.05507955]
[1731774887206,0.09068,90823.0,90822.0,0.16518442]
[1731774888404,0.09068,90828.0,90826.0,0.055025]
[1731774891802,0.0656126,90833.0,90822.0,0.36085255]
[1731774891997,0.23016163,90881.0,90822.0,0.36085255]
[1731774891998,0.09068,90835.0,90832.0,0.3608]
[1731774892207,0.09068,90835.0,90833.0,0.055021]
[1731774894003,0.09068,90835.0,90832.0,0.3608]
[1731774894004,0.02367469,90836.0,90835.0,0.05502]
[1731774894416,0.0016522,90836.0,90835.0,0.05502]
[1731774894598,0.0016522,90836.0,90835.0,0.17543161]
[1731774896303,0.0016522,90836.0,90835.0,0.53623161]
[1731774900519,0.10678088,90836.0,90835.0,0.41582]
[1731774900816,0.10678088,90836.0,90835.0,0.52590911]
[1731774901000,0.0016522,90836.0,90835.0,0.52590911]
[1731774901205,0.0016522,90836.0,90835.0,0.53622915]
[1731774903321,0.0566712,90836.0,90835.0,0.53622915]
[1731774904216,0.0566712,90836.0,90835.0,0.01032004]
[1731774904403,0.055023,90830.0,90829.0,0.055023]
[1731774905411,0.0016522,90836.0,90832.0,0.055021]
[1731774905619,0.055023,90830.0,90829.0,0.11009638]
[1731774905912,0.055023,90830.0,90829.0,0.06534415]
[1731774906211,0.055023,90830.0,90829.0,0.43444159]
[1731774906602,0.055023,90830.0,90829.0,0.17544053]
[1731774907916,0.055023,90830.0,90829.0,0.43476937]
[1731774908118,0.055023,90830.0,90829.0,0.17544053]
[1731774909009,0.055023,90830.0,90829.0,0.43476937]
[1731774909211,0.055023,90830.0,90829.0,0.37974637]
[1731774909418,0.055023,90830.0,90829.0,0.12041753]
[1731774910118,0.10035771,90830.0,90829.0,0.12041753]
[1731774910908,0.20548639,90830.0,90829.0,0.01032115]
[1731774911221,0.20548639,90830.0,90829.0,0.01032195]
[1731774911519,0.055027,90823.0,90822.0,5.255e-05]
[1731774911718,0.055027,90823.0,90822.0,0.01037455]
[1731774911719,0.16015568,90823.0,90822.0,0.01037455]
[1731774912112,0.16015568,90823.0,90822.0,0.01381545]
[1731774913311,0.055027,90823.0,90822.0,0.01381545]
[1731774913521,0.055024,90828.0,90827.0,0.055024]
[1731774913816,0.145664,90828.0,90827.0,0.0687869]
[1731774914227,0.145664,90828.0,90827.0,0.0137629]
[1731774915117,0.25079268,90828.0,90827.0,0.0137629]
[1731774916713,0.68620136,90828.0,90827.0,0.0137629]
[1731774916914,0.055027,90823.0,90813.0,0.00165175]
[1731774917122,0.3608,90814.0,90813.0,0.00165175]
[1731774917312,0.45144,90814.0,90813.0,0.00165175]
[1731774917726,0.055038,90804.0,90803.0,0.19448672]
[1731774917930,0.16016668,90804.0,90803.0,0.19448672]
[1731774918112,0.10512868,90804.0,90801.0,0.19448672]
[1731774918312,0.05504,90802.0,90801.0,0.19448672]
[1731774918516,0.055041,90799.0,90797.0,0.20001409]
[1731774919017,0.055041,90799.0,90797.0,0.00552737]
[1731774919219,0.055041,90799.0,90786.0,0.3608]
[1731774919220,0.055043,90796.0,90794.0,0.19448672]
[1731774919519,0.055047,90790.0,90788.0,0.11013458]
[1731774919721,0.09064,90789.0,90788.0,0.11013458]
[1731774919921,0.055049,90786.0,90785.0,0.19448672]
[1731774920120,0.09064,90789.0,90782.0,0.19448672]
[1731774920422,0.055048,90788.0,90786.0,0.1101461]
[1731774920624,0.09064,90789.0,90783.0,0.19448672]
[1731774920625,0.05505,90784.0,90783.0,0.19448672]
[1731774921127,0.05505,90784.0,90783.0,0.1101461]
[1731774921628,0.055052,90781.0,90780.0,0.19448672]
[1731774921824,0.1347499,90789.0,90776.0,0.67574384]
[1731774922024,0.055052,90782.0,90781.0,0.19414467]
[1731774922332,0.055048,90788.0,90780.0,0.19414467]
[1731774922533,0.055052,90781.0,90780.0,0.19414467]
[1731774922726,0.055052,90781.0,90776.0,0.415855]
[1731774922727,0.055052,90781.0,90779.0,0.19414467]
[1731774922929,0.1347499,90789.0,90779.0,0.19404943]
[1731774923127,0.055053,90780.0,90779.0,0.19404943]
[1731774923427,0.055054,90779.0,90777.0,0.19404943]
[1731774924023,0.055054,90779.0,90778.0,0.11015642]
[1731774924425,0.055055,90777.0,90776.0,0.3608]
[1731774925137,0.055055,90777.0,90776.0,0.47095884]
[1731774925523,0.16018368,90777.0,90776.0,0.47095884]
[1731774925719,0.16018368,90777.0,90768.0,0.55484943]
[1731774925929,0.16018368,90777.0,90768.0,0.3608]
[1731774925930,0.16018868,90769.0,90768.0,0.3608]
[1731774926327,0.16018868,90769.0,90768.0,0.47097037]
[1731774928831,0.16018868,90769.0,90768.0,0.36424297]
[1731774929033,0.52098868,90769.0,90768.0,0.00344297]
[1731774932134,0.52098868,90769.0,90754.0,0.3659]
[1731774932438,0.16019668,90755.0,90754.0,0.3608]
[1731774932735,0.25087668,90755.0,90754.0,0.36424346]
[1731774933441,0.3608,90761.0,90754.0,0.47443083]
[1731774933632,0.055065,90760.0,90758.0,0.055066]
[1731774933834,0.055065,90760.0,90759.0,0.00344346]
[1731774934340,0.09068,90762.0,90759.0,0.00344346]
[1731774934341,0.04389761,90765.0,90760.0,0.055065]
[1731774934543,0.055062,90765.0,90764.0,0.055062]
[1731774934737,0.055059,90771.0,90769.0,0.055059]
[1731774934940,0.055059,90771.0,90770.0,0.00344346]
[1731774935238,0.00165338,90774.0,90770.0,0.00344346]
[1731774935439,0.00165338,90774.0,90773.0,0.3608]
[1731774935740,0.055053,90781.0,90779.0,0.055053]
[1731774935942,0.3608,90783.0,90781.0,0.055052]
[1731774936143,0.3608,90783.0,90782.0,0.00344346]
[1731774936532,0.3608,90783.0,90781.0,0.055052]
[1731774936737,0.055051,90784.0,90781.0,0.055052]
[1731774936738,0.055051,90784.0,90782.0,0.11359637]
[1731774937037,0.055051,90784.0,90783.0,0.00344238]
[1731774937343,0.055051,90784.0,90782.0,0.055051]
[1731774937840,0.055051,90784.0,90783.0,0.11015278]
[1731774938830,0.09924717,90788.0,90786.0,0.055049]
[1731774939027,0.19580868,90792.0,90783.0,0.11015278]
[1731774939028,0.10512868,90792.0,90783.0,0.11015278]
[1731774939232,0.10512868,90792.0,90790.0,0.055047]
[1731774939433,0.20586441,90792.0,90791.0,0.00344189]
[1731774939644,0.22790273,90792.0,90791.0,0.00344189]
[1731774941056,0.10073573,90792.0,90791.0,0.11358435]
[1731774941249,0.055043,90796.0,90793.0,0.055045]
[1731774941544,0.055043,90796.0,90794.0,0.055044]
[1731774941746,0.04424461,90796.0,90794.0,0.055044]
[1731774941932,0.055038,90806.0,90803.0,0.055039]
[1731774942138,0.05515778,90805.0,90803.0,0.055039]
[1731774942337,0.05515778,90805.0,90804.0,0.00344159]
[1731774942842,0.10076287,90805.0,90804.0,0.01376586]
[1731774943546,0.10076287,90805.0,90804.0,0.01376598]
[1731774943940,0.10076287,90805.0,90804.0,0.00344159]
[1731774946240,0.10076287,90805.0,90804.0,0.01376605]
[1731774946748,0.10076287,90805.0,90804.0,0.01376596]
[1731774948345,0.10076287,90805.0,90804.0,0.01032446]
[1731774949543,0.10076287,90805.0,90794.0,0.19404943]
[1731774949745,0.055043,90796.0,90795.0,0.0103242]
[1731774949945,0.16017168,90796.0,90795.0,0.1204509]
[1731774950251,0.055044,90795.0,90790.0,0.24909643]
[1731774950443,0.16017168,90796.0,90795.0,0.12046297]
[1731774950838,0.16017168,90796.0,90795.0,0.01376715]
[1731774951042,0.16017168,90796.0,90795.0,0.1135794]
[1731774951451,0.16017168,90796.0,90795.0,0.00344179]
[1731774956956,0.055052,90782.0,90781.0,0.055052]
[1731774957138,0.055052,90782.0,90781.0,0.06882081]
[1731774957543,0.055052,90782.0,90781.0,0.17897541]
[1731774958341,0.055052,90782.0,90781.0,0.37302484]
[1731774958545,0.055052,90782.0,90781.0,0.36269823]
[1731774958745,0.0906,90798.0,90781.0,0.99982365]
[1731774958944,0.0906,90798.0,90794.0,0.3608]
[1731774959157,0.055043,90797.0,90795.0,0.0034422]
[1731774959357,0.055043,90797.0,90796.0,0.0034422]
[1731774959562,0.055043,90797.0,90796.0,0.01376819]
[1731774959946,0.10512868,90800.0,90796.0,0.01376819]
[1731774960148,0.19089113,90802.0,90801.0,0.05504]
[1731774960361,0.19089113,90802.0,90801.0,0.06880773]
[1731774960551,0.19089113,90802.0,90801.0,0.01376773]
[1731774960752,0.29601981,90802.0,90801.0,0.01376773]
[1731774961064,0.19089113,90802.0,90801.0,0.00344174]
[1731774961556,0.57137981,90802.0,90784.0,0.19494685]
[1731774961867,0.055054,90778.0,90777.0,0.3608]
[1731774962256,0.055054,90778.0,90777.0,0.47093033]
[1731774962651,0.16018268,90778.0,90777.0,0.47093033]
[1731774962855,0.16018268,90778.0,90776.0,0.00165226]
[1731774963061,0.46592868,90777.0,90776.0,0.00165226]
[1731774963359,0.46592868,90777.0,90762.0,0.055064]
[1731774963360,0.055063,90763.0,90762.0,0.055064]
[1731774963560,0.055063,90763.0,90762.0,0.06539265]
[1731774964263,0.055063,90763.0,90762.0,0.17555271]
[1731774964675,0.05506,90769.0,90767.0,0.05506]
[1731774964962,0.05506,90769.0,90768.0,0.37112865]
[1731774965259,0.05506,90769.0,90768.0,0.48130631]
[1731774965457,0.055058,90773.0,90771.0,0.055058]
[1731774965762,0.055058,90773.0,90771.0,0.26038942]
[1731774965961,0.055058,90771.0,90769.0,0.26038942]
[1731774966160,0.19572868,90777.0,90768.0,0.26038942]
[1731774966364,0.10512868,90770.0,90769.0,0.20564303]
[1731774966564,0.10512868,90770.0,90769.0,0.01032791]
[1731774966951,0.10512868,90770.0,90767.0,0.19531685]
[1731774967263,0.05506,90769.0,90768.0,0.01032874]
[1731774968663,0.05506,90769.0,90765.0,0.26038942]
[1731774968860,0.05506,90768.0,90766.0,0.31545042]
[1731774969362,0.05506,90768.0,90764.0,0.3608]
[1731774969363,0.05506,90768.0,90767.0,0.26038942]
[1731774970261,0.05506,90768.0,90766.0,0.26038942]
[1731774970461,0.055061,90767.0,90765.0,0.31545142]
[1731774970668,0.055061,90767.0,90766.0,0.26038942]
[1731774970860,0.055061,90767.0,90765.0,0.31545142]
[1731774971364,0.055061,90767.0,90766.0,0.26038942]
[1731774971559,0.055061,90767.0,90766.0,0.01032811]
[1731774971957,0.10512868,90770.0,90769.0,0.05506]
[1731774972167,0.055058,90773.0,90769.0,0.01032811]
[1731774972466,0.055058,90773.0,90772.0,0.3608]
[1731774972663,0.10063589,90773.0,90772.0,0.56610614]
[1731774973167,0.10063589,90773.0,90772.0,0.37112811]
[1731774974265,0.10063589,90773.0,90772.0,0.01032811]
[1731774974460,0.04557789,90773.0,90772.0,0.37112811]
[1731774974661,0.02203171,90775.0,90772.0,0.37112811]
[1731774974857,0.02203171,90775.0,90774.0,0.19510512]
[1731774975175,0.02203171,90775.0,90774.0,0.01032811]
[1731774975176,0.07708771,90775.0,90774.0,0.01032811]
[1731774975560,0.07708771,90775.0,90774.0,0.01377065]
[1731774976068,0.09052,90783.0,90780.0,0.055052]
[1731774976265,0.09052,90783.0,90782.0,0.055052]
[1731774976776,0.09052,90783.0,90782.0,0.1652066]
[1731774977380,0.09052,90783.0,90782.0,0.17553354]
[1731774977765,0.02215149,90805.0,90782.0,0.12048154]
[1731774977969,0.055045,90794.0,90792.0,0.055045]
[1731774978284,0.055045,90794.0,90793.0,0.20548678]
[1731774978475,0.16016968,90799.0,90796.0,0.055043]
[1731774978673,0.055042,90798.0,90797.0,0.01032694]
[1731774980078,0.055044,90795.0,90793.0,0.26016973]
[1731774980280,0.16017268,90794.0,90793.0,0.45542092]
[1731774980479,0.16017268,90794.0,90793.0,0.01032637]
[1731774981781,0.85141268,90794.0,90786.0,0.19528952]
[1731774981972,0.055051,90783.0,90777.0,0.26016973]
[1731774982169,0.055057,90773.0,90772.0,0.26016973]
[1731774982476,0.055057,90773.0,90772.0,0.01032806]
[1731774982477,0.16018568,90773.0,90772.0,0.01032806]
[1731774982885,0.16018568,90773.0,90772.0,0.27095179]
[1731774983085,0.16018568,90773.0,90772.0,0.01032806]
[1731774983384,0.16018568,90773.0,90772.0,0.27095179]